bitfinex/quotes_SOLUSD_20251106
["timestamp","ask_amount","ask_price","bid_price","bid_amount"]
[1762401546626,0.71,162.73,162.69,3.26612654]
[1762401546836,0.71,162.72,162.69,3.26612654]
[1762401549227,0.71,162.72,162.69,9.41274948]
[1762401550134,0.71,162.72,162.69,3.26612654]
[1762401550330,6.85553502,162.72,162.68,16.53307759]
[1762401550719,0.71,162.71,162.68,16.53307759]
[1762401550914,3.26612654,162.7,162.63,6.14892701]
[1762401551152,3.26612654,162.7,162.64,10.38612654]
[1762401551333,0.71,162.69,162.64,10.38612654]
[1762401551515,0.71,162.69,162.65,3.26612654]
[1762401552338,0.71,162.69,162.65,9.41401784]
[1762401553008,6.85666242,162.69,162.65,9.41401784]
[1762401553923,0.71,162.69,162.65,9.41401784]
[1762401554119,0.71,162.68,162.65,9.41401784]
[1762401555931,0.71,162.68,162.64,16.53455245]
[1762401556140,0.71,162.68,162.65,3.26612654]
[1762401556322,0.71,162.68,162.66,3.26612654]
[1762401557234,0.71,162.68,162.65,3.26612654]
[1762401557421,0.71,162.68,162.65,9.4142718]
[1762401557739,6.85707374,162.68,162.64,16.53456265]
[1762401558119,0.71,162.67,162.64,16.53456265]
[1762401558319,0.71,162.67,162.65,3.26612654]
[1762401559219,0.71,162.67,162.64,13.26843611]
[1762401559419,0.71,162.67,162.65,9.41428784]
[1762401559763,0.71,162.67,162.64,13.26847272]
[1762401560047,0.71,162.67,162.64,7.12]
[1762401560338,6.85742583,162.67,162.64,7.12]
[1762401560856,0.71,162.66,162.64,7.12]
[1762401561020,0.71,162.66,162.61,3.26612654]
[1762401561352,0.71,162.66,162.62,7.12]
[1762401561527,6.14817091,162.65,162.62,7.12]
[1762401562158,0.7,162.64,162.62,7.12]
[1762401563739,10.11499848,162.64,162.58,30.00880148]
[1762401563937,10.11499848,162.64,162.59,7.12]
[1762401564148,0.7,162.63,162.59,7.12]
[1762401565232,0.7,162.63,162.59,13.27036566]
[1762401565461,6.84828571,162.65,162.61,3.26612654]
[1762401565652,6.84828571,162.65,162.62,7.12]
[1762401565653,0.7,162.64,162.62,7.12]
[1762401565839,6.14749011,162.67,162.63,3.26612654]
[1762401566034,6.84749011,162.67,162.63,3.97612654]
[1762401566363,0.7,162.66,162.63,3.26612654]
[1762401567654,0.7,162.66,162.63,9.41495142]
[1762401569358,107.96612654,162.65,162.57,25.87590842]
[1762401569557,110.84854894,162.64,162.59,10.38612654]
[1762401569873,126.91992129,162.64,162.58,20.592]
[1762401570075,3.26612654,162.59,162.54,0.2]
[1762401570447,0.7,162.58,162.54,3.46612654]
[1762401570672,0.7,162.58,162.54,0.2]
[1762401571464,6.8510132,162.58,162.54,0.2]
[1762401572578,3.26612654,162.57,162.54,0.2]
[1762401572750,3.26612654,162.56,162.54,0.2]
[1762401572949,3.96612654,162.56,162.54,0.2]
[1762401573169,0.7,162.55,162.54,0.2]
[1762401573964,0.7,162.58,162.54,0.2]
[1762401574169,0.7,162.58,162.54,3.46612654]
[1762401575267,0.7,162.58,162.54,6.35224221]
[1762401575473,0.7,162.58,162.54,9.61836875]
[1762401575855,7.12,162.61,162.56,3.26612654]
[1762401575856,6.14968329,162.61,162.56,3.26612654]
[1762401576068,37.18784691,162.68,162.58,3.26612654]
[1762401576069,105.38,162.62,162.58,3.26612654]
[1762401576252,104.7,162.62,162.58,3.26612654]
[1762401576447,105.38,162.62,162.59,3.26612654]
[1762401577776,0.68,162.61,162.58,3.26612654]
[1762401577973,0.68,162.61,162.57,3.26612654]
[1762401578154,0.68,162.61,162.56,10.40612654]
[1762401578672,0.68,162.61,162.57,3.26612654]
[1762401579471,6.82977339,162.61,162.57,3.26612654]
[1762401580054,0.68,162.6,162.57,3.26612654]
[1762401580755,0.68,162.6,162.57,9.41728614]
[1762401581154,0.68,162.6,162.58,3.26612654]
[1762401581559,0.68,162.6,162.58,9.41694348]
[1762401582361,110.8494354,162.62,162.58,9.41694348]
[1762401582362,105.38,162.62,162.59,3.26612654]
[1762401582683,104.7,162.62,162.59,3.26612654]
[1762401582866,104.7,162.62,162.6,3.26612654]
[1762401583363,105.38,162.62,162.6,3.26612654]
[1762401583566,105.38,162.62,162.59,10.40612654]
[1762401583768,105.38,162.62,162.59,16.55642779]
[1762401585082,105.38,162.62,162.6,3.26612654]
[1762401586773,104.7,162.62,162.6,9.41605955]
[1762401587372,104.7,162.62,162.61,3.26612654]
[1762401588878,105.38,162.62,162.61,3.26612654]
[1762401589557,105.38,162.62,162.6,3.26612654]
[1762401591274,0.68,162.61,162.6,3.26612654]
[1762401591467,104.7,162.62,162.6,3.26612654]
[1762401591670,104.7,162.62,162.6,9.41617592]
[1762401591868,0.68,162.64,162.61,3.26612654]
[1762401592188,117.98783222,162.66,162.63,9.41480347]
[1762401592189,104.7,162.66,162.63,9.41480347]
[1762401592388,105.36,162.66,162.64,3.26612654]
[1762401598175,0.66,162.65,162.63,9.41480347]
[1762401599964,104.7,162.66,162.64,3.26612654]
[1762401600166,104.7,162.69,162.65,10.38612654]
[1762401600361,0.66,162.71,162.68,2.09153569]
[1762401600590,0.66,162.71,162.66,9.78882769]
[1762401600591,0.66,162.72,162.69,9.21153569]
[1762401600993,0.66,162.72,162.7,2.09153569]
[1762401601167,0.66,162.72,162.69,9.21153569]
[1762401601690,0.66,162.72,162.66,9.78882769]
[1762401601691,2.75153569,162.72,162.66,9.78882769]
[1762401601896,2.75153569,162.72,162.63,6.14867693]
[1762401601897,6.14703712,162.68,162.63,9.78882769]
[1762401602204,8.23857281,162.68,162.64,7.12]
[1762401602367,2.75153569,162.67,162.62,20.592]
[1762401602567,2.75153569,162.67,162.62,27.712]
[1762401602770,0.66,162.66,162.62,27.712]
[1762401603884,6.14854894,162.64,162.62,20.592]
[1762401604287,0.66,162.64,162.62,20.592]
[1762401604869,13.92782018,162.66,162.62,22.68353569]
[1762401605101,0.66,162.65,162.62,22.68353569]
[1762401605476,0.66,162.65,162.62,20.592]
[1762401605669,0.66,162.65,162.6,7.81]
[1762401605670,2.75153569,162.65,162.6,7.12]
[1762401606198,6.80854894,162.64,162.6,7.12]
[1762401606805,6.14831277,162.65,162.61,2.78153569]
[1762401607004,0.66,162.64,162.61,2.09153569]
[1762401607702,0.66,162.64,162.6,7.12]
[1762401607703,6.80791113,162.66,162.62,2.09153569]
[1762401607889,6.80791113,162.66,162.6,13.27004672]
[1762401607890,0.66,162.65,162.61,2.09153569]
[1762401608206,6.14854894,162.64,162.61,2.09153569]
[1762401608697,0.66,162.64,162.61,8.24116593]
[1762401608891,6.80823915,162.65,162.61,8.24116593]
[1762401609095,0.66,162.64,162.61,2.09153569]
[1762401609296,0.66,162.64,162.6,9.21153569]
[1762401609692,0.66,162.64,162.6,7.12]
[1762401610003,0.66,162.64,162.57,32.47236338]
[1762401610004,21.52124454,162.63,162.57,32.47236338]
[1762401610306,21.52124454,162.63,162.57,45.74350775]
[1762401610502,0.66,162.62,162.58,2.09153569]
[1762401610800,0.66,162.62,162.57,38.19082769]
[1762401610982,0.66,162.62,162.58,2.09153569]
[1762401611383,0.66,162.62,162.57,43.65194857]
[1762401611586,0.66,162.62,162.57,44.34194857]
[1762401611908,0.66,162.62,162.59,2.09153569]
[1762401612284,6.80936787,162.62,162.59,2.09153569]
[1762401612481,6.80936787,162.62,162.57,39.59236338]
[1762401612709,0.66,162.61,162.57,39.59236338]
[1762401613189,6.14936787,162.62,162.58,2.78153569]
[1762401613389,0.66,162.61,162.58,2.09153569]
[1762401613801,0.66,162.64,162.59,2.09153569]
[1762401614100,0.66,162.64,162.61,2.09153569]
[1762401614286,6.80859096,162.64,162.61,2.09153569]
[1762401614488,6.80859096,162.64,162.6,15.36146369]
[1762401615204,0.66,162.63,162.6,7.12]
[1762401615400,0.66,162.63,162.58,15.36213169]
[1762401615599,0.66,162.63,162.58,13.270596]
[1762401615803,0.66,162.63,162.58,15.36213169]
[1762401616197,6.14930512,162.62,162.58,9.21153569]
[1762401616697,0.66,162.64,162.6,2.09153569]
[1762401617110,0.66,162.64,162.61,9.21153569]
[1762401617610,104.7,162.66,162.62,2.09153569]
[1762401617911,0.66,162.65,162.61,9.21153569]
[1762401619012,0.66,162.65,162.61,7.12]
[1762401619213,6.80847559,162.65,162.61,7.12]
[1762401619596,0.66,162.64,162.61,7.12]
[1762401621021,6.80858867,162.64,162.61,7.12]
[1762401622116,0.68,162.63,162.61,7.12]
[1762401622612,6.14858867,162.64,162.61,7.12]
[1762401622815,6.82858867,162.64,162.61,7.12]
[1762401623403,0.68,162.63,162.61,7.12]
[1762401624605,0.68,162.63,162.58,2.09153569]
[1762401624801,0.68,162.63,162.58,9.21153569]
[1762401625206,0.68,162.67,162.62,2.09153569]
[1762401625534,0.68,162.67,162.63,8.24042888]
[1762401626021,6.82742012,162.67,162.63,2.09153569]
[1762401626395,0.68,162.66,162.63,2.09153569]
[1762401628410,22.04014355,162.73,162.65,2.09153569]
[1762401628600,22.04014355,162.73,162.63,21.52119998]
[1762401628601,10.43192164,162.8,162.72,2.09153569]
[1762401628800,10.43192164,162.8,162.74,2.09153569]
[1762401628801,0.68,162.79,162.74,2.09153569]
[1762401629001,2.77153569,162.79,162.72,7.12]
[1762401629234,2.77153569,162.79,162.73,2.09153569]
[1762401629434,0.68,162.78,162.73,2.09153569]
[1762401629611,0.68,162.78,162.74,2.09153569]
[1762401630141,0.68,162.78,162.73,2.09153569]
[1762401630347,6.8234994,162.78,162.73,2.09153569]
[1762401630712,0.68,162.77,162.73,2.09153569]
[1762401631610,0.68,162.77,162.72,15.35703158]
[1762401631835,0.68,162.77,162.73,2.09153569]
[1762401635009,6.82370205,162.77,162.73,2.09153569]
[1762401635214,6.82370205,162.77,162.72,13.91549589]
[1762401635215,2.09153569,162.76,162.69,32.47236338]
[1762401635545,2.09153569,162.73,162.67,9.78882769]
[1762401635712,2.09153569,162.73,162.68,7.12]
[1762401635912,0.69,162.72,162.68,7.12]
[1762401637226,6.83554846,162.72,162.68,7.12]
[1762401637612,0.69,162.71,162.68,7.12]
[1762401639555,0.69,162.73,162.69,2.09153569]
[1762401639728,0.69,162.72,162.69,2.09153569]
[1762401640236,6.14485785,162.74,162.69,2.09153569]
[1762401640437,6.14485785,162.74,162.7,2.09153569]
[1762401640438,0.69,162.74,162.7,2.09153569]
[1762401640641,0.69,162.75,162.71,9.21153569]
[1762401641628,6.1447708,162.74,162.71,7.12]
[1762401642151,0.69,162.73,162.71,7.12]
[1762401643643,6.1447708,162.74,162.71,7.12]
[1762401643860,0.69,162.74,162.71,7.12]
[1762401644141,6.14439324,162.75,162.71,7.12]
[1762401644357,6.83439324,162.75,162.71,7.12]
[1762401644515,0.69,162.74,162.71,7.12]
[1762401646237,6.83480268,162.74,162.71,7.12]
[1762401646637,0.69,162.73,162.71,7.12]
[1762401646942,0.69,162.73,162.66,18.02804758]
[1762401646943,2.78153569,162.73,162.66,18.02804758]
[1762401647129,0.69,162.72,162.67,7.12]
[1762401647325,0.69,162.72,162.67,9.87153569]
[1762401647544,0.69,162.72,162.67,9.21153569]
[1762401647731,0.69,162.72,162.67,9.87153569]
[1762401648348,6.83557295,162.72,162.68,7.12]
[1762401649026,0.69,162.71,162.68,7.12]
[1762401649640,0.69,162.71,162.68,13.26695162]
[1762401651449,6.83592241,162.71,162.68,7.12]
[1762401654244,0.69,162.71,162.68,7.12]
[1762401654454,0.69,162.71,162.68,13.26693767]
[1762401657958,6.83590686,162.71,162.68,7.12]
[1762401658553,0.71,162.7,162.68,7.12]
[1762401660254,2.09153569,162.69,162.61,0.72]
[1762401660461,20.592,162.67,162.58,9.78882769]
[1762401660756,7.12,162.69,162.59,13.27043975]
[1762401660757,3.27072739,162.65,162.59,13.27043975]
[1762401660944,21.302,162.66,162.59,17.26116714]
[1762401660945,24.57272739,162.66,162.59,17.26116714]
[1762401661140,0.71,162.65,162.59,17.26116714]
[1762401662042,0.71,162.65,162.6,3.27072739]
[1762401662660,6.85838948,162.65,162.6,10.14056609]
[1762401662840,10.12842158,162.67,162.61,3.99072739]
[1762401663166,10.12842158,162.67,162.62,10.39072739]
[1762401663167,6.85769419,162.67,162.62,10.39072739]
[1762401663458,3.98072739,162.66,162.62,7.12]
[1762401663855,0.71,162.65,162.62,7.12]
[1762401664057,3.98072739,162.65,162.62,7.12]
[1762401664439,0.71,162.64,162.62,7.12]
[1762401664770,0.71,162.65,162.62,7.12]
[1762401665139,0.71,162.65,162.62,13.2692549]
[1762401665767,6.14811632,162.66,162.62,13.2692549]
[1762401665971,6.85749231,162.67,162.63,0.72]
[1762401666335,0.71,162.66,162.62,16.53998229]
[1762401666666,0.71,162.66,162.62,17.25998229]
[1762401667445,6.85783012,162.66,162.62,13.2692549]
[1762401667666,3.27072739,162.65,162.62,7.12]
[1762401667976,3.27072739,162.63,162.55,6.15181808]
[1762401668154,3.27072739,162.6,162.55,13.27181808]
[1762401668466,3.27072739,162.62,162.56,3.27072739]
[1762401668642,0.71,162.61,162.56,3.27072739]
[1762401668843,0.71,162.61,162.56,3.99072739]
[1762401669053,6.1500615,162.6,162.55,16.54254547]
[1762401669259,6.1500615,162.6,162.55,7.12]
[1762401669465,0.71,162.59,162.55,7.12]
[1762401670966,0.71,162.59,162.55,16.54249843]
[1762401672268,3.98072739,162.59,162.54,0.2]
[1762401672450,3.27072739,162.58,162.55,7.12]
[1762401672649,3.98072739,162.58,162.55,7.12]
[1762401672853,0.71,162.57,162.55,7.12]
[1762401673370,6.8612046,162.57,162.55,7.12]
[1762401673754,0.71,162.56,162.55,7.12]
[1762401674861,6.86090795,162.58,162.55,7.12]
[1762401675051,0.71,162.57,162.55,7.12]
[1762401675374,0.71,162.57,162.54,9.62301253]
[1762401676171,0.71,162.57,162.54,0.2]
[1762401676555,6.86122581,162.57,162.54,0.2]
[1762401676951,0.71,162.56,162.54,0.2]
[1762401677452,6.15122581,162.57,162.54,0.2]
[1762401677666,6.86122581,162.57,162.54,0.2]
[1762401678472,0.71,162.57,162.54,6.35227253]
[1762401678791,0.71,162.57,162.54,0.2]
[1762401678977,3.27072739,162.56,162.54,0.2]
[1762401679272,24.57272739,162.55,162.54,0.2]
[1762401680052,26.74471026,162.53,162.52,0.2]
[1762401680252,26.74471026,162.53,162.51,0.2]
[1762401680253,30.78452643,162.53,162.51,0.2]
[1762401680452,30.78452643,162.53,162.49,0.2]
[1762401680453,20.592,162.5,162.49,0.2]
[1762401680668,23.86272739,162.5,162.49,0.2]
[1762401680868,24.57272739,162.5,162.49,0.2]
[1762401682284,31.4958043,162.5,162.49,0.2]
[1762401682586,28.22507691,162.5,162.49,0.2]
[1762401682883,31.4958043,162.5,162.49,0.2]
[1762401684960,30.72657354,162.5,162.49,0.2]
[1762401685161,31.4958043,162.5,162.49,0.2]
[1762401685470,34.76653169,162.5,162.49,1e-08]
[1762401685680,44.55535938,162.5,162.49,1e-08]
[1762401688695,44.55535938,162.5,162.47,0.2]
[1762401688879,20.592,162.46,162.45,0.2]
[1762401689086,41.56097524,162.46,162.45,1e-08]
[1762401689278,48.37633655,162.46,162.45,1e-08]
[1762401689669,0.66,162.45,162.44,1e-08]
[1762401689873,3.93072739,162.45,162.44,1e-08]
[1762401691089,10.08646761,162.45,162.44,1e-08]
[1762401691293,20.592,162.43,162.37,0.2]
[1762401691593,31.77228966,162.43,162.37,0.2]
[1762401691796,32.43228966,162.43,162.37,0.2]
[1762401692988,27.40849818,162.43,162.38,0.7]
[1762401693272,34.54849818,162.43,162.38,0.7]
[1762401693606,34.54849818,162.43,162.4,0.9]
[1762401693607,23.86272739,162.43,162.4,0.9]
[1762401693768,30.01922557,162.43,162.4,0.9]
[1762401694375,20.592,162.43,162.4,0.9]
[1762401695571,20.97495659,162.44,162.4,0.2]
[1762401695572,7.67876291,162.44,162.4,0.2]
[1762401695785,41.56612609,162.46,162.42,0.9]
[1762401696172,0.7,162.45,162.42,0.2]
[1762401696399,7.67876291,162.43,162.42,0.2]
[1762401696698,7.67876291,162.44,162.42,0.2]
[1762401697380,13.83525904,162.44,162.42,0.2]
[1762401697585,20.97525904,162.44,162.42,0.2]
[1762401697997,14.81876291,162.44,162.42,0.2]
[1762401698294,20.97490365,162.44,162.42,0.2]
[1762401698501,8.37876291,162.43,162.42,0.2]
[1762401699195,15.51876291,162.43,162.42,0.2]
[1762401699712,21.67526109,162.43,162.42,0.2]
[1762401702085,42.26726109,162.43,162.42,0.2]
[1762401707420,43.03682336,162.43,162.42,0.2]
[1762401708492,43.03682336,162.43,162.4,0.2]
[1762401708831,28.27076291,162.41,162.4,0.2]
[1762401708986,36.18041995,162.41,162.4,0.2]
[1762401709187,36.88041995,162.41,162.4,0.2]
[1762401710587,43.03767627,162.41,162.4,0.2]
[1762401711006,7.67876291,162.41,162.4,0.2]
[1762401711213,15.51876291,162.41,162.4,0.2]
[1762401712731,21.67601923,162.41,162.4,0.2]
[1762401714421,17.27952804,162.41,162.4,0.2]
[1762401714721,10.42227172,162.41,162.4,0.92]
[1762401715122,9.43952804,162.41,162.4,0.2]
[1762401716091,9.43952804,162.41,162.4,0.92]
[1762401716693,3.28227172,162.41,162.4,0.92]
[1762401717799,104.7,162.42,162.4,0.92]
[1762401717996,110.85688064,162.42,162.4,0.2]
[1762401718216,114.13915236,162.42,162.41,0.72]
[1762401718407,107.98227172,162.42,162.41,0.72]
[1762401719306,104.7,162.42,162.41,0.72]
[1762401720028,3.28227172,162.47,162.41,4.00227172]
[1762401720236,16.57687536,162.48,162.42,3.28227172]
[1762401720432,13.29460364,162.48,162.43,3.28227172]
[1762401720637,7.14,162.48,162.44,3.28227172]
[1762401720842,104.7,162.49,162.45,6.15574022]
[1762401721135,117.99384726,162.5,162.45,10.15801194]
[1762401721334,117.99384726,162.5,162.46,0.72]
[1762401721530,3.28227172,162.48,162.44,0.72]
[1762401721707,3.28227172,162.48,162.43,9.43840746]
[1762401721908,3.28227172,162.48,162.44,0.72]
[1762401722336,2.09831799,162.48,162.44,0.72]
[1762401722516,2.09831799,162.47,162.44,0.72]
[1762401722827,8.25350256,162.47,162.44,0.72]
[1762401723615,2.09831799,162.47,162.44,0.72]
[1762401724439,8.25337444,162.47,162.44,0.72]
[1762401724622,111.84,162.5,162.44,8.9743167]
[1762401724814,117.99396692,162.5,162.45,8.25368901]
[1762401725149,120.09228491,162.5,162.45,0.72]
[1762401725311,2.09831799,162.48,162.43,0.72]
[1762401725515,2.09831799,162.47,162.43,0.72]
[1762401726407,8.25344619,162.47,162.43,0.72]
[1762401726821,2.09831799,162.47,162.43,6.8764794]
[1762401727011,8.25336407,162.47,162.44,0.72]
[1762401727212,2.09831799,162.47,162.44,0.72]
[1762401728142,8.91301784,162.48,162.44,0.72]
[1762401729431,2.09831799,162.47,162.44,0.72]
[1762401730242,6.15469985,162.48,162.44,0.72]
[1762401730438,8.25301784,162.48,162.44,0.72]
[1762401730814,8.25301784,162.48,162.44,6.87608358]
[1762401731018,6.15469985,162.48,162.44,6.87608358]
[1762401731241,6.15469985,162.48,162.45,0.72]
[1762401732130,15.39258571,162.49,162.45,0.72]
[1762401734843,104.7,162.5,162.46,2.09831799]
[1762401735233,104.7,162.5,162.47,0.72]
[1762401735752,112.95033217,162.55,162.49,2.09831799]
[1762401735934,113.93831799,162.55,162.5,0.72]
[1762401736120,104.7,162.55,162.51,8.25178546]
[1762401736325,15.38964537,162.57,162.51,8.25178546]
[1762401736548,15.38964537,162.57,162.52,0.72]
[1762401736844,16.04964537,162.57,162.52,0.72]
[1762401737449,16.04964537,162.57,162.52,6.87292314]
[1762401737951,13.29132738,162.57,162.53,0.72]
[1762401738328,16.04964537,162.57,162.53,0.72]
[1762401739045,16.04964537,162.57,162.53,6.87269858]
[1762401741350,15.38964537,162.57,162.54,0.72]
[1762401741651,22.69031799,162.59,162.54,0.72]
[1762401741857,9.23831799,162.59,162.54,0.72]
[1762401742061,2.19831799,162.61,162.55,2.09831799]
[1762401742223,2.19831799,162.61,162.54,10.50882769]
[1762401742224,2.09831799,162.59,162.54,10.50882769]
[1762401742424,2.09831799,162.59,162.54,0.72]
[1762401742628,2.09831799,162.58,162.55,0.66]
[1762401743428,2.09831799,162.58,162.55,6.81192047]
[1762401743647,2.09831799,162.59,162.56,0.66]
[1762401744031,6.15042743,162.6,162.56,0.66]
[1762401744630,0.1,162.61,162.57,2.09831799]
[1762401744851,0.1,162.61,162.55,31.32063127]
[1762401744852,2.09831799,162.59,162.53,6.15252891]
[1762401745154,0.68,162.6,162.54,0.66]
[1762401745155,2.09831799,162.58,162.54,0.66]
[1762401745547,8.92923767,162.58,162.54,0.66]
[1762401746052,2.09831799,162.57,162.53,7.14]
[1762401746254,6.15091968,162.58,162.53,7.14]
[1762401746255,2.09831799,162.56,162.54,0.66]
[1762401747752,8.24975245,162.57,162.53,13.29265789]
[1762401748058,8.92975245,162.57,162.53,7.8]
[1762401749560,8.92975245,162.57,162.54,0.66]
[1762401750553,8.92975245,162.57,162.53,7.14]
[1762401750732,8.92975245,162.57,162.53,7.8]
[1762401751243,104.7,162.56,162.53,7.8]
[1762401753553,104.7,162.56,162.53,13.95269676]
[1762401754461,104.7,162.56,162.54,0.66]
[1762401754658,104.7,162.56,162.53,13.95269676]
[1762401754854,104.7,162.56,162.53,7.8]
[1762401756243,110.85160661,162.56,162.53,7.8]
[1762401756442,2.80831799,162.55,162.5,26.74571247]
[1762401756643,2.80831799,162.55,162.5,34.55571247]
[1762401756844,2.80831799,162.55,162.51,0.69]
[1762401757042,104.7,162.54,162.51,0.69]
[1762401757540,104.7,162.54,162.51,6.84345542]
[1762401757754,104.7,162.54,162.53,2.09831799]
[1762401758061,104.7,162.54,162.53,9.21831799]
[1762401758353,104.7,162.54,162.53,9.90831799]
[1762401758562,0.1,162.61,162.54,9.78882769]
[1762401758748,0.71,162.6,162.55,2.09831799]
[1762401759063,0.71,162.6,162.56,7.12]
[1762401759762,0.71,162.6,162.56,13.27156546]
[1762401759960,0.71,162.6,162.56,15.36988345]
[1762401761140,6.86010609,162.6,162.56,15.36988345]
[1762401761560,0.71,162.59,162.56,15.36988345]
[1762401762665,8.34802698,162.61,162.56,15.36988345]
[1762401762845,0.71,162.6,162.56,15.36988345]
[1762401763168,0.71,162.6,162.57,2.09831799]
[1762401763754,0.1,162.61,162.58,2.09831799]
[1762401763945,0.1,162.61,162.6,2.09831799]
[1762401764657,0.1,162.61,162.59,9.21831799]
[1762401765164,0.1,162.61,162.59,15.36868975]
[1762401765772,0.81,162.61,162.59,7.12]
[1762401767073,0.81,162.61,162.59,13.27042066]
[1762401769067,0.81,162.61,162.59,7.12]
[1762401769286,6.95981959,162.61,162.57,8.24945567]
[1762401769467,6.95981959,162.61,162.57,15.36945567]
[1762401769770,0.71,162.6,162.57,7.12]
[1762401771768,6.86013057,162.6,162.57,7.12]
[1762401772162,0.68,162.59,162.57,7.12]
[1762401772864,0.68,162.59,162.55,6.15163335]
[1762401773071,2.09831799,162.57,162.51,2.09831799]
[1762401773383,2.09831799,162.57,162.51,29.81031799]
[1762401773552,0.68,162.56,162.52,6.15308885]
[1762401773869,103.55,162.58,162.54,2.09831799]
[1762401774175,103.55,162.58,162.55,2.09831799]
[1762401774472,0.68,162.6,162.56,2.09831799]
[1762401774673,0.68,162.6,162.57,2.09831799]
[1762401775180,0.68,162.6,162.57,9.21831799]
[1762401775350,0.1,162.61,162.57,9.21831799]
[1762401775546,0.1,162.61,162.58,6.15081805]
[1762401775787,0.78,162.61,162.58,6.15081805]
[1762401777352,0.1,162.61,162.58,6.15081805]
[1762401777863,0.78,162.61,162.58,6.15081805]
[1762401782847,6.92970542,162.61,162.57,16.54373882]
[1762401783051,0.78,162.61,162.57,16.54373882]
[1762401783354,0.68,162.6,162.57,16.54373882]
[1762401783555,0.1,162.61,162.58,13.06149998]
[1762401783867,0.1,162.61,162.6,3.27267229]
[1762401784080,0.1,162.61,162.6,10.39267229]
[1762401784484,0.1,162.61,162.6,7.12]
[1762401785060,0.1,162.61,162.6,13.2700615]
[1762401788262,0.78,162.61,162.58,15.93927292]
[1762401788463,0.78,162.61,162.59,7.12]
[1762401789071,3.27267229,162.6,162.56,6.15146673]
[1762401789274,106.82267229,162.6,162.57,7.12]
[1762401789474,3.95267229,162.59,162.57,7.12]
[1762401789783,3.95267229,162.59,162.54,6.15222601]
[1762401789984,3.27267229,162.56,162.51,6.1531811]
[1762401790280,3.27267229,162.55,162.53,7.12]
[1762401790481,3.95267229,162.55,162.52,7.12]
[1762401790690,0.68,162.54,162.52,7.12]
[1762401791489,3.95267229,162.55,162.52,7.12]
[1762401791677,0.68,162.54,162.52,7.12]
[1762401792786,0.68,162.54,162.52,13.27300787]
[1762401795281,9.42424837,162.56,162.52,13.27300787]
[1762401795282,3.27267229,162.56,162.52,13.27300787]
[1762401795591,7.12,162.57,162.52,16.54568016]
[1762401795891,106.82267229,162.58,162.52,31.92840228]
[1762401796093,0.68,162.56,162.52,31.92840228]
[1762401797996,104.23,162.58,162.53,3.27267229]
[1762401798170,0.68,162.57,162.54,7.12]
[1762401799796,0.68,162.57,162.54,13.27213979]
[1762401801597,103.55,162.58,162.55,3.27267229]
[1762401801778,104.23,162.58,162.56,7.12]
[1762401801969,103.55,162.58,162.56,7.12]
[1762401802391,0.66,162.57,162.56,7.12]
[1762401802895,0.66,162.57,162.53,6.15261488]
[1762401803089,0.66,162.57,162.54,7.12]
[1762401803587,0.66,162.57,162.54,13.27224797]
[1762401803768,6.81123842,162.57,162.54,7.12]
[1762401803965,10.08391071,162.57,162.54,7.12]
[1762401804170,0.66,162.56,162.54,7.12]
[1762401813617,10.0842725,162.56,162.51,6.15334807]
[1762401813943,106.82267229,162.55,162.51,7.12]
[1762401814203,107.48267229,162.55,162.51,7.12]
[1762401814398,0.66,162.54,162.51,7.12]
[1762401815514,103.55,162.55,162.52,6.15308885]
[1762401815811,104.21,162.55,162.52,6.15308885]
[1762401816588,103.55,162.55,162.52,6.15308885]
[1762401816782,0.68,162.54,162.52,6.15308885]